[Event "Late-Titled-Tuesday-Blitz-June-04-2024"]
[Site "Chess.com"]
[Date "2024.06.04"]
[Round "2"]
[White "bubeliang"]
[Black "Bilan_Danila"]
[Result "1-0"]
[WhiteElo "2850"]
[BlackElo "2551"]
[TimeControl "180+1"]
[EndTime "14:17:23 PDT"]
[Termination "bubeliang won by resignation"]

1. e4 {[%clk 0:03:00.9]} 1... c6 {[%clk 0:02:59.7]} 2. d4 {[%clk 0:02:58.9]}
2... d5 {[%clk 0:03:00.6]} 3. Nc3 {[%clk 0:02:59.3]} 3... b5 {[%clk 0:02:58]} 4.
a3 {[%clk 0:02:49]} 4... e6 {[%clk 0:02:56.5]} 5. Nf3 {[%clk 0:02:48.2]} 5... b4
{[%clk 0:02:56.3]} 6. axb4 {[%clk 0:02:44.6]} 6... Bxb4 {[%clk 0:02:57.2]} 7.
exd5 {[%clk 0:02:44.7]} 7... cxd5 {[%clk 0:02:55]} 8. Bd3 {[%clk 0:02:41.8]}
8... Nf6 {[%clk 0:02:49.7]} 9. O-O {[%clk 0:02:41.3]} 9... a5 {[%clk 0:02:43.1]}
10. Ne2 {[%clk 0:02:36.3]} 10... Ba6 {[%clk 0:02:42.7]} 11. Ne5 {[%clk
0:02:35.4]} 11... Bxd3 {[%clk 0:02:33.5]} 12. Qxd3 {[%clk 0:02:36.3]} 12... O-O
{[%clk 0:02:33.4]} 13. Bg5 {[%clk 0:02:33.7]} 13... h6 {[%clk 0:02:26.1]} 14.
Bh4 {[%clk 0:02:32.8]} 14... Be7 {[%clk 0:02:25]} 15. c3 {[%clk 0:02:29.3]}
15... Nfd7 {[%clk 0:02:13]} 16. Bxe7 {[%clk 0:02:17.4]} 16... Qxe7 {[%clk
0:02:13.9]} 17. f4 {[%clk 0:02:18]} 17... Nxe5 {[%clk 0:01:49.3]} 18. fxe5
{[%clk 0:02:18.9]} 18... Nd7 {[%clk 0:01:48.1]} 19. Nf4 {[%clk 0:02:18.1]} 19...
Rfb8 {[%clk 0:01:45.9]} 20. Ra2 {[%clk 0:02:14.8]} 20... a4 {[%clk 0:01:40.6]}
21. h3 {[%clk 0:02:06.7]} 21... Nf8 {[%clk 0:01:22.9]} 22. Rf3 {[%clk
0:01:57.9]} 22... a3 {[%clk 0:01:15.2]} 23. b4 {[%clk 0:01:47.7]} 23... Qh4
{[%clk 0:01:06.3]} 24. Kh2 {[%clk 0:01:42.6]} 24... Nh7 {[%clk 0:00:46.2]} 25.
Qe3 {[%clk 0:01:29.6]} 25... Ng5 {[%clk 0:00:42.8]} 26. Rg3 {[%clk 0:01:29.5]}
26... Ne4 {[%clk 0:00:42.6]} 27. Rg4 {[%clk 0:01:29.6]} 27... Qe7 {[%clk
0:00:34.5]} 28. Nh5 {[%clk 0:01:24.6]} 28... g5 {[%clk 0:00:21.8]} 29. Rxe4
{[%clk 0:00:50.6]} 29... dxe4 {[%clk 0:00:19.4]} 30. Qxe4 {[%clk 0:00:51.5]}
30... f5 {[%clk 0:00:08.1]} 31. exf6 {[%clk 0:00:51.5]} 31... Qc7+ {[%clk
0:00:08.3]} 32. Ng3 {[%clk 0:00:40.5]} 32... Qf7 {[%clk 0:00:07.6]} 33. Qe5
{[%clk 0:00:37.6]} 33... Rd8 {[%clk 0:00:05.6]} 34. c4 {[%clk 0:00:37]} 34...
Rf8 {[%clk 0:00:03]} 35. Ne4 {[%clk 0:00:35.1]} 35... Rfb8 {[%clk 0:00:02]} 36.
b5 {[%clk 0:00:34.6]} 36... Rc8 {[%clk 0:00:02.6]} 37. Nd6 {[%clk 0:00:34.4]}
37... Qh5 {[%clk 0:00:01.9]} 38. f7+ {[%clk 0:00:31.5]} 38... Kf8 {[%clk
0:00:01.8]} 39. Qh8+ {[%clk 0:00:30]} 39... Ke7 {[%clk 0:00:02]} 40. Nxc8+
{[%clk 0:00:29.8]} 40... Rxc8 {[%clk 0:00:02.5]} 41. Qxc8 {[%clk 0:00:29.2]} 1-0

[Event "Late-Titled-Tuesday-Blitz-June-04-2024"]
[Site "Chess.com"]
[Date "2024.06.04"]
[Round "2"]
[White "Indefatigable11"]
[Black "Arash_Tahbaz"]
[Result "0-1"]
[WhiteElo "2405"]
[BlackElo "2826"]
[TimeControl "180+1"]
[EndTime "14:17:24 PDT"]
[Termination "Arash_Tahbaz won by resignation"]

1. Nf3 {[%clk 0:03:00.9]} 1... Nf6 {[%clk 0:02:37.1]} 2. d4 {[%clk 0:03:00.5]}
2... e6 {[%clk 0:02:18.1]} 3. c4 {[%clk 0:03:00.1]} 3... d5 {[%clk 0:02:18.2]}
4. Nc3 {[%clk 0:02:59.8]} 4... Be7 {[%clk 0:02:13.2]} 5. Bf4 {[%clk 0:02:58.2]}
5... O-O {[%clk 0:02:12.2]} 6. e3 {[%clk 0:02:57.8]} 6... c5 {[%clk 0:02:10.8]}
7. dxc5 {[%clk 0:02:57.4]} 7... Bxc5 {[%clk 0:02:11.7]} 8. a3 {[%clk 0:02:57.1]}
8... Nc6 {[%clk 0:02:09.3]} 9. Qc2 {[%clk 0:02:56.1]} 9... Qa5 {[%clk
0:02:08.1]} 10. Rd1 {[%clk 0:02:55.4]} 10... Be7 {[%clk 0:02:05.7]} 11. Be2
{[%clk 0:02:51.7]} 11... Ne4 {[%clk 0:02:03.2]} 12. cxd5 {[%clk 0:02:41]} 12...
Nxc3 {[%clk 0:02:00.7]} 13. bxc3 {[%clk 0:02:32.1]} 13... exd5 {[%clk 0:02:01]}
14. O-O {[%clk 0:02:32]} 14... h6 {[%clk 0:01:58.7]} 15. a4 {[%clk 0:02:31.2]}
15... Bf6 {[%clk 0:01:54.1]} 16. Nd4 {[%clk 0:02:17.3]} 16... Nd8 {[%clk
0:01:48.6]} 17. Rb1 {[%clk 0:01:59.6]} 17... Bd7 {[%clk 0:01:47.1]} 18. Bb5
{[%clk 0:01:55.9]} 18... Nc6 {[%clk 0:01:44.3]} 19. Bd6 {[%clk 0:01:21.9]} 19...
Rfc8 {[%clk 0:01:42.5]} 20. Bxc6 {[%clk 0:01:11.9]} 20... Bxc6 {[%clk
0:01:40.9]} 21. Nxc6 {[%clk 0:00:55.6]} 21... Rxc6 {[%clk 0:01:41.8]} 22. Bb4
{[%clk 0:00:55.4]} 22... Qc7 {[%clk 0:01:38.9]} 23. Qb3 {[%clk 0:00:51.9]} 23...
Rc4 {[%clk 0:01:25.4]} 24. a5 {[%clk 0:00:47.7]} 24... Qc6 {[%clk 0:01:12.5]}
25. Rfd1 {[%clk 0:00:45.4]} 25... Rc8 {[%clk 0:01:09.1]} 26. Rd3 {[%clk
0:00:40.7]} 26... Bxc3 {[%clk 0:01:01]} 27. Bxc3 {[%clk 0:00:20.5]} 27... Rxc3
{[%clk 0:01:01.9]} 28. Rxc3 {[%clk 0:00:20.8]} 28... Qxc3 {[%clk 0:01:02.8]} 29.
Qxd5 {[%clk 0:00:18.2]} 29... Qc1+ {[%clk 0:01:00.7]} 30. Qd1 {[%clk 0:00:18.3]}
30... Qxd1+ {[%clk 0:01:01.3]} 31. Rxd1 {[%clk 0:00:19.1]} 31... Rc5 {[%clk
0:01:01.9]} 32. Ra1 {[%clk 0:00:19.2]} 32... a6 {[%clk 0:01:00.4]} 33. Kf1
{[%clk 0:00:17.8]} 33... Rb5 {[%clk 0:01:00.9]} 34. Ke2 {[%clk 0:00:17.7]} 34...
Rb2+ {[%clk 0:01:01.3]} 35. Kf3 {[%clk 0:00:17.8]} 35... Rb5 {[%clk 0:01:01.1]}
36. Ra4 {[%clk 0:00:17.4]} 36... h5 {[%clk 0:00:59.9]} 37. Ke4 {[%clk
0:00:17.6]} 37... g6 {[%clk 0:00:59]} 38. Kd4 {[%clk 0:00:14.7]} 38... Rb2
{[%clk 0:00:59.3]} 39. f4 {[%clk 0:00:12.2]} 39... Rxg2 {[%clk 0:00:58.5]} 40.
Rb4 {[%clk 0:00:11.8]} 40... Rxh2 {[%clk 0:00:59]} 41. Rxb7 {[%clk 0:00:11.9]}
41... Ra2 {[%clk 0:00:59.7]} 42. Rb6 {[%clk 0:00:12.2]} 42... Rxa5 {[%clk
0:01:00]} 43. e4 {[%clk 0:00:12.9]} 43... h4 {[%clk 0:00:59.9]} 44. e5 {[%clk
0:00:11.3]} 44... h3 {[%clk 0:00:59.1]} 45. Rb3 {[%clk 0:00:10.4]} 45... h2
{[%clk 0:00:59.3]} 46. Rh3 {[%clk 0:00:10.1]} 46... Ra2 {[%clk 0:00:59.7]} 47.
Ke4 {[%clk 0:00:07.6]} 47... a5 {[%clk 0:01:00.2]} 48. f5 {[%clk 0:00:07.3]}
48... gxf5+ {[%clk 0:00:59.2]} 49. Kxf5 {[%clk 0:00:08.2]} 49... a4 {[%clk
0:00:59.6]} 50. Rg3+ {[%clk 0:00:08.3]} 50... Kf8 {[%clk 0:00:59.5]} 51. Rh3
{[%clk 0:00:08.4]} 51... Ke7 {[%clk 0:01:00]} 52. Rh8 {[%clk 0:00:06.6]} 52...
a3 {[%clk 0:01:00.2]} 53. Rh7 {[%clk 0:00:05.9]} 53... Rf2+ {[%clk 0:00:59.7]}
54. Ke4 {[%clk 0:00:05.9]} 54... a2 {[%clk 0:01:00.6]} 0-1

[Event "Late-Titled-Tuesday-Blitz-June-04-2024"]
[Site "Chess.com"]
[Date "2024.06.04"]
[Round "2"]
[White "hansen"]
[Black "Kopytkin"]
[Result "1-0"]
[WhiteElo "3048"]
[BlackElo "2413"]
[TimeControl "180+1"]
[EndTime "14:17:25 PDT"]
[Termination "hansen won on time"]

1. e4 {[%clk 0:03:00.9]} 1... Nf6 {[%clk 0:02:59.4]} 2. e5 {[%clk 0:03:01.2]}
2... Nd5 {[%clk 0:02:59.5]} 3. c4 {[%clk 0:03:01.7]} 3... Nb6 {[%clk 0:02:59.3]}
4. d4 {[%clk 0:03:02.3]} 4... d6 {[%clk 0:02:59.4]} 5. exd6 {[%clk 0:03:02.9]}
5... cxd6 {[%clk 0:02:59.4]} 6. Nc3 {[%clk 0:03:03.1]} 6... g6 {[%clk 0:03:00]}
7. Be3 {[%clk 0:03:03]} 7... Bg7 {[%clk 0:03:00.6]} 8. Rc1 {[%clk 0:03:03.6]}
8... O-O {[%clk 0:03:00.8]} 9. b3 {[%clk 0:03:02.9]} 9... Bf5 {[%clk 0:02:56.9]}
10. Be2 {[%clk 0:03:01.7]} 10... d5 {[%clk 0:02:55.6]} 11. c5 {[%clk 0:02:56.7]}
11... Nc8 {[%clk 0:02:56.1]} 12. b4 {[%clk 0:02:54.6]} 12... Nc6 {[%clk
0:02:28.3]} 13. b5 {[%clk 0:02:53.5]} 13... Na5 {[%clk 0:02:28.4]} 14. Nf3
{[%clk 0:02:47.7]} 14... Bg4 {[%clk 0:02:28.1]} 15. O-O {[%clk 0:02:40.9]} 15...
e6 {[%clk 0:02:27.2]} 16. Bg5 {[%clk 0:02:05.4]} 16... Ne7 {[%clk 0:02:22.1]}
17. Qa4 {[%clk 0:01:47.8]} 17... f6 {[%clk 0:02:04.2]} 18. Bd2 {[%clk
0:01:25.5]} 18... Bxf3 {[%clk 0:01:46.2]} 19. Bxf3 {[%clk 0:01:25.6]} 19... Nc4
{[%clk 0:01:46.3]} 20. Qc2 {[%clk 0:00:58]} 20... Nf5 {[%clk 0:01:29.3]} 21. Ne2
{[%clk 0:00:58]} 21... a6 {[%clk 0:01:25.3]} 22. b6 {[%clk 0:00:54.5]} 22...
Nxd2 {[%clk 0:01:23.6]} 23. Qxd2 {[%clk 0:00:53.3]} 23... Bh6 {[%clk 0:01:24.2]}
24. Qd3 {[%clk 0:00:38.5]} 24... Bxc1 {[%clk 0:01:21.2]} 25. Rxc1 {[%clk
0:00:39.4]} 25... Ne7 {[%clk 0:01:15.4]} 26. Nf4 {[%clk 0:00:37.8]} 26... Qd7
{[%clk 0:00:54.2]} 27. Re1 {[%clk 0:00:35.4]} 27... Kf7 {[%clk 0:00:33]} 28. g3
{[%clk 0:00:17.2]} 28... Rfe8 {[%clk 0:00:30]} 29. Rxe6 {[%clk 0:00:11.9]} 29...
Qxe6 {[%clk 0:00:24.6]} 30. Nxe6 {[%clk 0:00:12.8]} 30... Kxe6 {[%clk
0:00:25.2]} 31. Qe3+ {[%clk 0:00:13]} 31... Kf7 {[%clk 0:00:21.9]} 32. Qh6
{[%clk 0:00:13.1]} 32... Kg8 {[%clk 0:00:11.5]} 33. Qf4 {[%clk 0:00:12.9]} 33...
Kf7 {[%clk 0:00:10.2]} 34. Qc7 {[%clk 0:00:13]} 34... Rac8 {[%clk 0:00:08.4]}
35. Qxb7 {[%clk 0:00:12.3]} 35... Rb8 {[%clk 0:00:08.8]} 36. Qa7 {[%clk
0:00:12.5]} 36... Ra8 {[%clk 0:00:08.9]} 37. Bxd5+ {[%clk 0:00:13.1]} 1-0

[Event "Late-Titled-Tuesday-Blitz-June-04-2024"]
[Site "Chess.com"]
[Date "2024.06.04"]
[Round "2"]
[White "chrisclaireredfield"]
[Black "MatthewG-p4p"]
[Result "0-1"]
[WhiteElo "2558"]
[BlackElo "2888"]
[TimeControl "180+1"]
[EndTime "14:17:28 PDT"]
[Termination "MatthewG-p4p won by resignation"]

1. Nf3 {[%clk 0:03:00.9]} 1... c5 {[%clk 0:02:57.9]} 2. c4 {[%clk 0:03:00.3]}
2... g6 {[%clk 0:02:58.3]} 3. d4 {[%clk 0:02:58.6]} 3... cxd4 {[%clk 0:02:58.7]}
4. Nxd4 {[%clk 0:02:58.7]} 4... Bg7 {[%clk 0:02:59.1]} 5. e4 {[%clk 0:02:58.6]}
5... Nc6 {[%clk 0:02:59.7]} 6. Be3 {[%clk 0:02:58.3]} 6... Qb6 {[%clk
0:03:00.1]} 7. Nb3 {[%clk 0:02:56.8]} 7... Qd8 {[%clk 0:03:00.2]} 8. Nd4 {[%clk
0:02:54.1]} 8... Nf6 {[%clk 0:02:58.4]} 9. Nc3 {[%clk 0:02:52.9]} 9... O-O
{[%clk 0:02:57.3]} 10. Be2 {[%clk 0:02:52.8]} 10... d6 {[%clk 0:02:57.4]} 11.
O-O {[%clk 0:02:52.1]} 11... Nxd4 {[%clk 0:02:57.7]} 12. Bxd4 {[%clk 0:02:52.1]}
12... a5 {[%clk 0:02:58.6]} 13. b3 {[%clk 0:02:46.9]} 13... Bd7 {[%clk
0:02:58.8]} 14. Qd2 {[%clk 0:02:46.1]} 14... Bc6 {[%clk 0:02:59]} 15. f3 {[%clk
0:02:46.2]} 15... Nd7 {[%clk 0:02:57.7]} 16. Be3 {[%clk 0:02:46.1]} 16... Nc5
{[%clk 0:02:57.5]} 17. Rab1 {[%clk 0:02:45.1]} 17... e6 {[%clk 0:02:56.8]} 18.
Rfc1 {[%clk 0:02:42]} 18... Be5 {[%clk 0:02:55.2]} 19. Bf1 {[%clk 0:02:38.6]}
19... Qe7 {[%clk 0:02:30.1]} 20. a3 {[%clk 0:02:38]} 20... a4 {[%clk 0:02:24.9]}
21. bxa4 {[%clk 0:02:24.8]} 21... Bxa4 {[%clk 0:02:02.2]} 22. Nxa4 {[%clk
0:02:19.1]} 22... Rxa4 {[%clk 0:02:01.1]} 23. Bxc5 {[%clk 0:01:43.7]} 23... dxc5
{[%clk 0:01:47.6]} 24. Rb3 {[%clk 0:01:43.9]} 24... Rd8 {[%clk 0:01:28.4]} 25.
Qc2 {[%clk 0:01:41.6]} 25... Qg5 {[%clk 0:01:21.5]} 26. Rd1 {[%clk 0:01:37.7]}
26... Bd4+ {[%clk 0:01:12.1]} 27. Kh1 {[%clk 0:01:37.5]} 27... Rda8 {[%clk
0:01:08.5]} 28. Qd3 {[%clk 0:01:16.4]} 28... h5 {[%clk 0:00:56.2]} 29. g3 {[%clk
0:01:14]} 29... h4 {[%clk 0:00:54.7]} 30. f4 {[%clk 0:01:13.7]} 30... Qh6 {[%clk
0:00:45.6]} 31. Kg2 {[%clk 0:00:58.8]} 31... hxg3 {[%clk 0:00:41.4]} 32. hxg3
{[%clk 0:00:58.6]} 32... Kg7 {[%clk 0:00:41]} 33. e5 {[%clk 0:00:10.1]} 33...
Rh8 {[%clk 0:00:40]} 34. Kf3 {[%clk 0:00:10.6]} 34... Qh5+ {[%clk 0:00:26.6]}
35. Ke4 {[%clk 0:00:09.8]} 35... Qg4 {[%clk 0:00:14.5]} 36. Rxb7 {[%clk
0:00:07.4]} 36... Rh2 {[%clk 0:00:11.1]} 37. Rdb1 {[%clk 0:00:04.8]} 37... Qf5+
{[%clk 0:00:11]} 0-1

[Event "Late-Titled-Tuesday-Blitz-June-04-2024"]
[Site "Chess.com"]
[Date "2024.06.04"]
[Round "2"]
[White "Sanan_Sjugirov"]
[Black "Perecke"]
[Result "1/2-1/2"]
[WhiteElo "2945"]
[BlackElo "2607"]
[TimeControl "180+1"]
[EndTime "14:17:35 PDT"]
[Termination "Game drawn by repetition"]

1. e4 {[%clk 0:02:56.9]} 1... c5 {[%clk 0:02:59]} 2. Nf3 {[%clk 0:02:56.2]} 2...
e6 {[%clk 0:02:59.5]} 3. d4 {[%clk 0:02:55.9]} 3... cxd4 {[%clk 0:03:00.4]} 4.
Nxd4 {[%clk 0:02:56.5]} 4... Nc6 {[%clk 0:03:01.1]} 5. Nc3 {[%clk 0:02:56.6]}
5... Qc7 {[%clk 0:03:01.2]} 6. f4 {[%clk 0:02:51.5]} 6... a6 {[%clk 0:02:57.4]}
7. Nxc6 {[%clk 0:02:51.4]} 7... Qxc6 {[%clk 0:02:55.8]} 8. Bd3 {[%clk
0:02:49.5]} 8... Bc5 {[%clk 0:02:50.2]} 9. Qg4 {[%clk 0:02:41.3]} 9... Ne7
{[%clk 0:02:43.6]} 10. Bd2 {[%clk 0:02:33.8]} 10... O-O {[%clk 0:02:39]} 11. Qh5
{[%clk 0:02:20.3]} 11... f5 {[%clk 0:02:21.2]} 12. O-O-O {[%clk 0:02:18.1]}
12... b5 {[%clk 0:02:18.5]} 13. exf5 {[%clk 0:02:15.6]} 13... Nxf5 {[%clk
0:02:13.7]} 14. g4 {[%clk 0:02:06]} 14... g6 {[%clk 0:02:12.3]} 15. Qh3 {[%clk
0:02:06.4]} 15... Nd4 {[%clk 0:02:02.8]} 16. Ne4 {[%clk 0:02:04.9]} 16... Be7
{[%clk 0:01:35]} 17. Bc3 {[%clk 0:02:01.2]} 17... Ne2+ {[%clk 0:01:23.9]} 18.
Bxe2 {[%clk 0:02:01]} 18... Qxe4 {[%clk 0:01:24.3]} 19. Bd3 {[%clk 0:01:55.2]}
19... Qxf4+ {[%clk 0:01:16]} 20. Bd2 {[%clk 0:01:55.3]} 20... Qf7 {[%clk
0:00:22.7]} 21. Rhf1 {[%clk 0:01:54]} 21... Qe8 {[%clk 0:00:21.9]} 22. Qh6
{[%clk 0:01:36.9]} 22... Rxf1 {[%clk 0:00:20]} 23. Rxf1 {[%clk 0:01:36.7]} 23...
Bf8 {[%clk 0:00:20.9]} 24. Qg5 {[%clk 0:01:34]} 24... Qe7 {[%clk 0:00:16.7]} 25.
Qe5 {[%clk 0:01:22.7]} 25... Bb7 {[%clk 0:00:15.8]} 26. Bg5 {[%clk 0:00:22.1]}
26... Bg7 {[%clk 0:00:08]} 27. Bf6 {[%clk 0:00:22.3]} 27... Bxf6 {[%clk
0:00:07.9]} 28. Rxf6 {[%clk 0:00:22.8]} 28... Rf8 {[%clk 0:00:07.5]} 29. g5
{[%clk 0:00:23.2]} 29... Rxf6 {[%clk 0:00:05.5]} 30. gxf6 {[%clk 0:00:24.1]}
30... Qb4 {[%clk 0:00:05.6]} 31. c3 {[%clk 0:00:10.7]} 31... Qh4 {[%clk
0:00:04.9]} 32. Qc7 {[%clk 0:00:06.2]} 32... Qe1+ {[%clk 0:00:04.6]} 33. Kc2
{[%clk 0:00:06.3]} 33... Qf2+ {[%clk 0:00:05.4]} 34. Kc1 {[%clk 0:00:05.2]}
34... Qe1+ {[%clk 0:00:05.1]} 35. Kc2 {[%clk 0:00:05.7]} 35... Qf2+ {[%clk
0:00:04.7]} 36. Kc1 {[%clk 0:00:03]} 36... Qe1+ {[%clk 0:00:03.4]} 1/2-1/2

[Event "Late-Titled-Tuesday-Blitz-June-04-2024"]
[Site "Chess.com"]
[Date "2024.06.04"]
[Round "2"]
[White "carokannlover213"]
[Black "drdaro"]
[Result "1-0"]
[WhiteElo "2719"]
[BlackElo "2382"]
[TimeControl "180+1"]
[EndTime "14:17:36 PDT"]
[Termination "carokannlover213 won on time"]

1. f3 {[%clk 0:02:52.6]} 1... d6 {[%clk 0:03:00.9]} 2. b3 {[%clk 0:02:51.2]}
2... e5 {[%clk 0:02:59.9]} 3. Bb2 {[%clk 0:02:50.8]} 3... f5 {[%clk 0:03:00.2]}
4. d4 {[%clk 0:02:50.2]} 4... e4 {[%clk 0:02:58.8]} 5. e3 {[%clk 0:02:48.9]}
5... exf3 {[%clk 0:02:54.8]} 6. Nxf3 {[%clk 0:02:47.8]} 6... Nf6 {[%clk
0:02:55.7]} 7. Bc4 {[%clk 0:02:46.8]} 7... Qe7 {[%clk 0:02:51.7]} 8. Qe2 {[%clk
0:02:38.3]} 8... g6 {[%clk 0:02:39.4]} 9. Nbd2 {[%clk 0:02:16.9]} 9... Bh6
{[%clk 0:02:38.1]} 10. O-O-O {[%clk 0:02:16.8]} 10... Be6 {[%clk 0:02:21]} 11.
Kb1 {[%clk 0:02:05.2]} 11... Nbd7 {[%clk 0:02:19.3]} 12. e4 {[%clk 0:02:01.7]}
12... Bxc4 {[%clk 0:02:09.1]} 13. Qxc4 {[%clk 0:01:54.6]} 13... fxe4 {[%clk
0:01:58.6]} 14. Qxc7 {[%clk 0:01:40.7]} 14... O-O {[%clk 0:01:50.1]} 15. Rhe1
{[%clk 0:01:34.4]} 15... Nd5 {[%clk 0:01:24.6]} 16. Qxb7 {[%clk 0:01:26]} 16...
Ne3 {[%clk 0:01:20.5]} 17. Qxe4 {[%clk 0:01:12.7]} 17... Qxe4 {[%clk 0:01:14.6]}
18. Nxe4 {[%clk 0:01:13.6]} 18... d5 {[%clk 0:01:13.5]} 19. Rxe3 {[%clk
0:01:06.1]} 19... Bxe3 {[%clk 0:01:11.9]} 20. Nc3 {[%clk 0:01:06.5]} 20... Nf6
{[%clk 0:01:04.1]} 21. Ne5 {[%clk 0:00:57.7]} 21... Rae8 {[%clk 0:01:01.3]} 22.
Nb5 {[%clk 0:00:55.9]} 22... Bf4 {[%clk 0:00:52.4]} 23. Nxa7 {[%clk 0:00:46.3]}
23... Bxh2 {[%clk 0:00:39.8]} 24. a4 {[%clk 0:00:46.6]} 24... Ne4 {[%clk
0:00:36]} 25. Nac6 {[%clk 0:00:41.2]} 25... Rf2 {[%clk 0:00:29]} 26. a5 {[%clk
0:00:39.1]} 26... h5 {[%clk 0:00:23.7]} 27. a6 {[%clk 0:00:38]} 27... h4 {[%clk
0:00:21.4]} 28. a7 {[%clk 0:00:37.8]} 28... Ra8 {[%clk 0:00:22]} 29. b4 {[%clk
0:00:37.4]} 29... Rxg2 {[%clk 0:00:21.2]} 30. b5 {[%clk 0:00:35.3]} 30... Bxe5
{[%clk 0:00:15.2]} 31. dxe5 {[%clk 0:00:29]} 31... h3 {[%clk 0:00:12]} 32. b6
{[%clk 0:00:22.1]} 32... Nc5 {[%clk 0:00:12.1]} 33. Na5 {[%clk 0:00:08.7]} 33...
h2 {[%clk 0:00:11.6]} 34. Bd4 {[%clk 0:00:09.4]} 34... Nb7 {[%clk 0:00:01.3]}
35. Nxb7 {[%clk 0:00:07.7]} 35... Rg4 {[%clk 0:00:02.2]} 36. c3 {[%clk
0:00:04.7]} 36... Kf7 {[%clk 0:00:01]} 37. Nd6+ {[%clk 0:00:04.3]} 1-0

[Event "Late-Titled-Tuesday-Blitz-June-04-2024"]
[Site "Chess.com"]
[Date "2024.06.04"]
[Round "2"]
[White "Meri-Arabidze"]
[Black "YellowJacek"]
[Result "1/2-1/2"]
[WhiteElo "2694"]
[BlackElo "2396"]
[TimeControl "180+1"]
[EndTime "14:17:37 PDT"]
[Termination "Game drawn by repetition"]

1. Nf3 {[%clk 0:03:00.9]} 1... Nf6 {[%clk 0:02:57.9]} 2. c4 {[%clk 0:03:01.4]}
2... g6 {[%clk 0:02:57.6]} 3. g3 {[%clk 0:03:01.9]} 3... Bg7 {[%clk 0:02:57.8]}
4. Bg2 {[%clk 0:03:02.5]} 4... c6 {[%clk 0:02:58.3]} 5. O-O {[%clk 0:03:02.9]}
5... O-O {[%clk 0:02:58.3]} 6. d4 {[%clk 0:03:01.2]} 6... d5 {[%clk 0:02:58.7]}
7. a4 {[%clk 0:03:01.8]} 7... Bf5 {[%clk 0:02:51.2]} 8. a5 {[%clk 0:02:54]} 8...
Bxb1 {[%clk 0:02:42.6]} 9. Rxb1 {[%clk 0:02:52.3]} 9... Qxa5 {[%clk 0:02:43.1]}
10. b4 {[%clk 0:02:48.8]} 10... Qa2 {[%clk 0:02:37.8]} 11. Nd2 {[%clk
0:02:41.7]} 11... dxc4 {[%clk 0:02:31.6]} 12. Bb2 {[%clk 0:02:15.1]} 12... Nd5
{[%clk 0:02:19.6]} 13. Qc1 {[%clk 0:02:04.5]} 13... c3 {[%clk 0:02:14.4]} 14.
Bxc3 {[%clk 0:02:01.4]} 14... Nxc3 {[%clk 0:02:12.8]} 15. Qxc3 {[%clk
0:02:02.3]} 15... Nd7 {[%clk 0:02:00.4]} 16. e4 {[%clk 0:01:31.5]} 16... Nb6
{[%clk 0:01:39.1]} 17. Nb3 {[%clk 0:01:28.4]} 17... Qe2 {[%clk 0:01:19.1]} 18.
Nc5 {[%clk 0:01:19.2]} 18... Rab8 {[%clk 0:01:18.5]} 19. Rfe1 {[%clk 0:01:11.7]}
19... Qc4 {[%clk 0:01:18.4]} 20. Qxc4 {[%clk 0:01:10.6]} 20... Nxc4 {[%clk
0:01:19.3]} 21. Nd7 {[%clk 0:01:11]} 21... Bxd4 {[%clk 0:01:17.8]} 22. Nxb8
{[%clk 0:01:09.9]} 22... Rxb8 {[%clk 0:01:17.3]} 23. Bf1 {[%clk 0:01:00.6]}
23... Nb6 {[%clk 0:01:13.6]} 24. e5 {[%clk 0:00:56.5]} 24... Nd5 {[%clk
0:01:09.9]} 25. Kg2 {[%clk 0:00:48.5]} 25... Bc3 {[%clk 0:01:09.7]} 26. Re4
{[%clk 0:00:45]} 26... b5 {[%clk 0:01:08.3]} 27. f4 {[%clk 0:00:38.8]} 27... a5
{[%clk 0:01:02]} 28. bxa5 {[%clk 0:00:37.6]} 28... Bxa5 {[%clk 0:01:02.9]} 29.
Ra1 {[%clk 0:00:30.2]} 29... Bb6 {[%clk 0:01:02.1]} 30. e6 {[%clk 0:00:27.4]}
30... f5 {[%clk 0:01:01.7]} 31. Ree1 {[%clk 0:00:24.6]} 31... Kg7 {[%clk
0:01:00.9]} 32. Ra6 {[%clk 0:00:22.8]} 32... Kf6 {[%clk 0:00:58.2]} 33. Rea1
{[%clk 0:00:17.5]} 33... Kxe6 {[%clk 0:00:54.7]} 34. Kf3 {[%clk 0:00:17.3]}
34... Kd6 {[%clk 0:00:54.6]} 35. h3 {[%clk 0:00:15.7]} 35... b4 {[%clk
0:00:53.8]} 36. Bc4 {[%clk 0:00:15.1]} 36... Bd4 {[%clk 0:00:52.3]} 37. Rd1
{[%clk 0:00:12.4]} 37... Kc5 {[%clk 0:00:49.1]} 38. Bb3 {[%clk 0:00:12.2]} 38...
Nc3 {[%clk 0:00:47.8]} 39. Re1 {[%clk 0:00:09.8]} 39... e5 {[%clk 0:00:47.2]}
40. fxe5 {[%clk 0:00:09.4]} 40... Ne4 {[%clk 0:00:46.9]} 41. Rxe4 {[%clk
0:00:09.6]} 41... fxe4+ {[%clk 0:00:46.7]} 42. Kxe4 {[%clk 0:00:10.5]} 42... Re8
{[%clk 0:00:46.2]} 43. e6 {[%clk 0:00:10]} 43... Bc3 {[%clk 0:00:44.9]} 44. Ra5+
{[%clk 0:00:09.6]} 44... Kd6 {[%clk 0:00:45]} 45. Ra7 {[%clk 0:00:09.1]} 45...
Re7 {[%clk 0:00:44.2]} 46. Rxe7 {[%clk 0:00:08]} 46... Kxe7 {[%clk 0:00:45.1]}
47. Kd3 {[%clk 0:00:07.7]} 47... Be1 {[%clk 0:00:44.9]} 48. g4 {[%clk
0:00:07.6]} 48... c5 {[%clk 0:00:45.2]} 49. Bc4 {[%clk 0:00:07.2]} 49... Bf2
{[%clk 0:00:45.6]} 50. Ke4 {[%clk 0:00:07.6]} 50... Bd4 {[%clk 0:00:45.7]} 51.
Kd5 {[%clk 0:00:07.7]} 51... h5 {[%clk 0:00:45.9]} 52. gxh5 {[%clk 0:00:07.2]}
52... gxh5 {[%clk 0:00:46.8]} 53. Ke4 {[%clk 0:00:07.8]} 53... h4 {[%clk
0:00:47.2]} 54. Kd5 {[%clk 0:00:07.7]} 54... Bf6 {[%clk 0:00:47.2]} 55. Kxc5
{[%clk 0:00:07.5]} 55... Bc3 {[%clk 0:00:46.5]} 56. Kd5 {[%clk 0:00:07.9]} 56...
Be1 {[%clk 0:00:46.5]} 57. Ke4 {[%clk 0:00:07.9]} 57... Bc3 {[%clk 0:00:47.4]}
58. Kd5 {[%clk 0:00:08.1]} 58... Be1 {[%clk 0:00:48.3]} 59. Ke4 {[%clk
0:00:08.5]} 59... Bc3 {[%clk 0:00:49.2]} 60. Kd5 {[%clk 0:00:09]} 1/2-1/2